bitfinex/quotes_SOLUSD_20240912
["timestamp","ask_amount","ask_price","bid_price","bid_amount"]
[1726129271195,0.2653093,135.29,135.27,16.6325]
[1726129273503,0.2653093,135.29,135.25,6.6542]
[1726129274723,0.2653093,135.29,135.26,6.6537]
[1726129280804,0.2653093,135.29,135.28,6.6528]
[1726129290417,0.2653093,135.29,135.28,8.13068424]
[1726129291031,0.2653093,135.33,135.28,45.724384]
[1726129291338,0.2653093,135.33,135.32,61.81058954]
[1726129292431,0.2653093,135.33,135.32,91.81058954]
[1726129292639,0.2653093,135.33,135.32,93.28788177]
[1726129293623,0.2653093,135.33,135.32,77.054984]
[1726129294223,0.2653093,135.33,135.32,47.054984]
[1726129295725,0.2653093,135.33,135.32,23.2781]
[1726129299929,0.2653093,135.33,135.32,47.054984]
[1726129302843,0.2653093,135.33,135.32,48.53222826]
[1726129303024,0.2653093,135.33,135.32,48.53223071]
[1726129303427,0.2653093,135.33,135.32,47.054984]
[1726129303842,0.2653093,135.33,135.32,47.180474]
[1726129310256,0.2653093,135.38,135.37,80.288584]
[1726129311343,0.2653093,135.38,135.37,56.5117]
[1726129313850,0.2653093,135.38,135.37,80.288584]
[1726129314456,0.2653093,135.38,135.37,95.04418954]
[1726129318150,16.2722093,135.38,135.36,6.6487]
[1726129319337,16.2722093,135.38,135.37,6.6484]
[1726129320351,16.2722093,135.38,135.36,6.6488]
[1726129321041,16.2722093,135.38,135.34,16.6242]
[1726129321761,22.9201093,135.38,135.34,16.6242]
[1726129322243,22.9201093,135.38,135.33,6.6502]
[1726129322445,6.6485,135.37,135.32,6.6508]
[1726129323270,16.2722093,135.38,135.29,6.6519]
[1726129323271,6.6501,135.34,135.29,6.6519]
[1726129323777,15.5985,135.33,135.29,6.6519]
[1726129324061,15.5985,135.33,135.3,6.6518]
[1726129324235,15.5985,135.33,135.31,6.6513]
[1726129324755,15.5985,135.33,135.32,6.6509]
[1726129325065,15.5985,135.33,135.31,6.6512]
[1726129328367,15.5985,135.33,135.32,6.6509]
[1726129328668,22.9664,135.37,135.32,6.6509]
[1726129328870,29.615,135.37,135.32,6.6509]
[1726129329077,29.615,135.37,135.33,6.6503]
[1726129329269,29.6148,135.37,135.33,6.6503]
[1726129329587,29.6148,135.37,135.32,6.6508]
[1726129332964,22.9664,135.37,135.33,6.6502]
[1726129335871,29.6148,135.37,135.32,6.6508]
[1726129338073,6.649,135.36,135.31,23.2787]
[1726129338275,6.649,135.36,135.32,6.6508]
[1726129338765,29.6149,135.37,135.32,6.6508]
[1726129341478,6.6494,135.35,135.31,23.2787]
[1726129341680,6.6489,135.36,135.31,23.2787]
[1726129344100,6.6495,135.35,135.31,16.6275]
[1726129348301,14.3213146,135.36,135.31,23.2788]
[1726129351893,7.6723146,135.36,135.3,6.6518]
[1726129352803,6.6494,135.35,135.3,6.6518]
[1726129355389,7.6723146,135.36,135.3,6.6518]
[1726129355711,7.6723146,135.36,135.29,6.6523]
[1726129357217,6.6495,135.35,135.3,6.6517]
[1726129357888,14.32593733,135.35,135.3,6.6517]
[1726129363217,14.32593733,135.35,135.31,6.6513]
[1726129365010,14.32593733,135.35,135.3,6.6517]
[1726129367911,6.65,135.34,135.3,6.6517]
[1726129369831,14.32772581,135.33,135.28,23.2839]
[1726129370014,14.32772581,135.33,135.28,16.6315]
[1726129370426,14.32772581,135.33,135.29,6.6523]
[1726129370427,7.67732581,135.33,135.29,6.6523]
[1726129370827,7.67732581,135.33,135.3,6.6518]
[1726129371131,6.6499,135.34,135.3,6.6518]
[1726129371324,7.67416847,135.33,135.3,6.6518]
[1726129371532,6.6499,135.34,135.3,6.6518]
[1726129373524,6.6499,135.34,135.29,6.6522]
[1726129378335,6.6499,135.34,135.3,6.6518]
[1726129383840,6.6493,135.36,135.31,6.6511]
[1726129384042,22.9664,135.37,135.3,16.629]
[1726129384530,16.4409,135.37,135.32,16.6263]
[1726129386037,23.0894,135.37,135.32,23.2771]
[1726129386823,16.4409,135.37,135.33,6.6504]
[1726129387719,16.4409,135.37,135.32,16.6263]
[1726129388043,0.2653093,135.38,135.36,6.6484]
[1726129388414,0.2653093,135.38,135.34,23.2732]
[1726129390220,0.2653093,135.38,135.37,6.6484]
[1726129390450,0.2653093,135.38,135.37,23.2695]
[1726129394145,0.2653093,135.38,135.37,16.6211]
[1726129394649,0.2653093,135.38,135.36,6.6488]
[1726129395830,0.2653093,135.38,135.35,6.6493]
[1726129398224,0.2653093,135.38,135.36,6.6486]
[1726129399732,0.2653093,135.38,135.35,6.6493]
[1726129401324,0.2653093,135.38,135.36,6.6488]
[1726129401524,0.2653093,135.38,135.37,6.6484]
[1726129405149,0.2653093,135.38,135.37,30.425284]
[1726129411233,0.2653093,135.38,135.37,6.6484]
[1726129411442,0.2653093,135.38,135.36,23.2703]
[1726129414138,0.2653093,135.38,135.35,6.6494]
[1726129414338,0.2653093,135.38,135.34,6.6494]
[1726129414959,0.2653093,135.38,135.33,16.6257]
[1726129414960,0.2653093,135.38,135.33,23.276]
[1726129415566,6.6484,135.37,135.33,16.6257]
[1726129415954,6.6484,135.37,135.33,23.2761]
[1726129416143,6.9133093,135.38,135.33,23.2761]
[1726129416763,0.2653093,135.38,135.34,6.6496]
[1726129417064,0.2653093,135.38,135.35,6.6493]
[1726129419173,0.2653093,135.38,135.36,6.6488]
[1726129423651,0.2653093,135.38,135.37,6.6484]
[1726129426058,0.2653093,135.38,135.36,6.6488]
[1726129427061,0.2653093,135.38,135.35,23.2721]
[1726129432179,0.2653093,135.38,135.36,6.6488]
[1726129438497,0.2653093,135.38,135.35,16.6228]
[1726129439664,0.2653093,135.38,135.36,6.6485]
[1726129441198,0.2653093,135.38,135.37,6.6484]
[1726129441992,0.2653093,135.38,135.37,45.18088954]
[1726129443384,0.2653093,135.38,135.37,30.425284]
[1726129443995,0.2653093,135.38,135.37,6.6484]
[1726129450272,0.2653093,135.38,135.37,30.425284]
[1726129450474,0.2653093,135.38,135.37,31.90203548]
[1726129450783,0.2653093,135.38,135.37,32.02752548]
[1726129452297,0.2653093,135.38,135.37,30.550774]
[1726129452675,0.2653093,135.38,135.37,32.02736082]
[1726129452899,0.2653093,135.38,135.37,30.676264]
[1726129453892,0.2653093,135.38,135.37,30.550774]
[1726129456585,0.2653093,135.38,135.37,30.425284]
[1726129456884,0.2653093,135.38,135.37,6.6484]
[1726129457703,0.2653093,135.38,135.35,31.37840554]
[1726129457704,0.2653093,135.38,135.36,6.6488]
[1726129457914,6.9132093,135.38,135.33,386.2]
[1726129458097,0.2653093,135.38,135.33,386.2]
[1726129458489,0.2653093,135.38,135.34,6.6494]
[1726129462286,0.2653093,135.38,135.35,6.6494]
[1726129466820,0.2653093,135.38,135.34,6.6498]
[1726129467117,6.9136093,135.38,135.33,23.2753]
[1726129467601,6.6485,135.37,135.33,16.6249]
[1726129467800,13.312,135.37,135.33,16.6249]
[1726129467999,13.312,135.37,135.33,23.2752]
[1726129468502,13.312,135.37,135.33,16.6249]
[1726129468897,6.6489,135.36,135.31,6.6513]
[1726129469312,13.312,135.37,135.32,6.6508]
[1726129470204,13.312,135.37,135.33,6.6503]
[1726129470496,6.6635,135.37,135.33,16.6259]
[1726129471320,6.6635,135.37,135.33,23.2762]
[1726129471705,13.3121,135.37,135.33,16.6259]
[1726129476524,6.6635,135.37,135.33,16.6259]
[1726129476725,6.6635,135.37,135.34,6.6494]
[1726129477115,6.6635,135.37,135.35,6.6493]
[1726129477424,0.2653093,135.38,135.35,6.6493]
[1726129478909,0.2653093,135.38,135.36,6.6489]
[1726129483721,0.2653093,135.38,135.37,6.6484]
[1726129488633,0.2653093,135.38,135.35,23.2717]
[1726129489025,0.2653093,135.38,135.35,16.6227]
[1726129492135,6.9132093,135.38,135.33,6.6503]
[1726129492340,6.9132093,135.38,135.34,6.6497]
[1726129492633,0.2653093,135.38,135.34,6.6497]
[1726129494439,0.2653093,135.38,135.35,6.6493]
[1726129494932,0.2653093,135.38,135.34,16.6241]
[1726129495140,0.2653093,135.38,135.37,6.6484]
[1726129497818,0.2653093,135.38,135.37,30.425284]
[1726129498322,0.2653093,135.38,135.37,6.6484]
[1726129500650,0.2653093,135.38,135.37,30.425284]
[1726129500856,0.2653093,135.38,135.37,6.6484]
[1726129501355,0.2653093,135.38,135.37,30.425284]
[1726129501530,0.2653093,135.38,135.37,46.65773229]
[1726129501726,0.2653093,135.38,135.37,45.18088954]
[1726129505157,0.2653093,135.38,135.37,45.18088954]
[1726129508247,0.2653093,135.38,135.37,30.425284]
[1726129514853,0.2653093,135.38,135.37,6.6484]
[1726129516552,0.2653093,135.38,135.37,45.18088954]
[1726129517758,0.2653093,135.38,135.37,45.30637954]
[1726129519964,0.2653093,135.38,135.37,45.18088954]
[1726129521762,0.2653093,135.38,135.37,6.6484]
[1726129523283,0.2653093,135.38,135.36,16.6212]
[1726129523774,0.2653093,135.38,135.36,23.2698]
[1726129526665,0.2653093,135.38,135.37,6.6484]
[1726129530172,0.2653093,135.38,135.37,30.425284]
[1726129543294,0.2653093,135.38,135.37,34.83900557]
[1726129543491,0.2653093,135.38,135.37,30.425284]
[1726129545081,0.2653093,135.38,135.37,34.83886998]
[1726129545279,0.2653093,135.38,135.37,30.425284]
[1726129545500,0.2653093,135.38,135.37,34.83895165]
[1726129545806,0.2653093,135.38,135.37,30.425284]
[1726129546013,0.2653093,135.38,135.37,34.83885713]
[1726129546582,0.2653093,135.38,135.37,34.83856199]
[1726129547313,0.2653093,135.38,135.37,11.06167799]
[1726129548005,0.2653093,135.38,135.37,11.06081933]
[1726129548211,0.2653093,135.38,135.37,6.6484]
[1726129548381,0.2653093,135.38,135.36,16.6212]
[1726129548578,0.2653093,135.38,135.37,6.6484]
[1726129548884,0.2653093,135.38,135.36,16.6212]
[1726129549210,6.2790093,135.38,135.33,16.6258]
[1726129550482,6.2790093,135.38,135.34,6.6498]
[1726129553285,6.2790093,135.38,135.35,6.6494]
[1726129556490,6.2790093,135.38,135.34,6.6498]
[1726129556690,15.11,135.37,135.33,23.2761]
[1726129556906,15.11,135.37,135.33,16.6258]
[1726129556907,21.7585,135.37,135.33,16.6258]
[1726129557189,15.11,135.37,135.33,23.2761]
[1726129560326,22.77038211,135.37,135.33,23.2761]
[1726129560616,22.77038211,135.37,135.32,6.6508]
[1726129560802,22.77038211,135.37,135.32,16.6265]
[1726129561010,15.11,135.37,135.36,6.6489]
[1726129561415,0.2653093,135.38,135.36,6.6489]
[1726129564331,0.2653093,135.38,135.37,6.6484]
[1726129565625,0.2653093,135.38,135.37,31.90251715]
[1726129567416,0.2653093,135.38,135.37,30.425284]
[1726129574708,0.2653093,135.38,135.37,6.6484]
[1726129575429,0.2653093,135.38,135.37,30.425284]
[1726129583534,0.2653093,135.38,135.37,6.6484]
[1726129586610,0.2653093,135.38,135.37,30.425284]
[1726129591138,0.2653093,135.38,135.37,6.6484]
[1726129594136,0.2653093,135.38,135.37,30.425284]
[1726129595130,0.2653093,135.38,135.37,63.667484]
[1726129596947,0.2653093,135.38,135.37,78.42308954]
[1726129599738,0.2653093,135.38,135.37,78.54857954]
[1726129601435,0.2653093,135.38,135.37,80.02532688]
[1726129601627,0.2653093,135.38,135.37,100.15081688]
[1726129602525,0.2653093,135.38,135.37,100.1506903]
[1726129602735,0.2653093,135.38,135.37,100.15069549]
[1726129602921,0.2653093,135.38,135.37,104.55730702]
[1726129603122,0.2653093,135.38,135.37,98.67406954]
[1726129603435,0.2653093,135.38,135.37,103.08062025]
[1726129604627,0.2653093,135.38,135.37,104.55719807]
[1726129605541,0.2653093,135.38,135.37,103.08062025]
[1726129606538,0.2653093,135.38,135.37,125.30062025]
[1726129607750,0.2653093,135.38,135.37,511.50062025]
[1726129608154,0.2653093,135.38,135.37,518.55011627]
[1726129608541,0.2653093,135.38,135.37,507.09406954]
[1726129608747,0.2653093,135.38,135.37,518.54948625]
[1726129608950,0.2653093,135.38,135.37,496.32948625]
[1726129609150,0.2653093,135.38,135.37,501.9837543]
[1726129609551,0.2653093,135.38,135.37,489.15450904]
[1726129609752,0.2653093,135.38,135.37,496.20372223]
[1726129610261,0.2653093,135.38,135.37,501.98363684]
[1726129611862,0.2653093,135.38,135.37,490.52877039]
[1726129612061,0.2653093,135.38,135.37,501.98405569]
[1726129613761,0.2653093,135.38,135.37,524.20405569]
[1726129615263,0.2653093,135.38,135.37,512.74883244]
[1726129615454,0.2653093,135.38,135.37,524.20424352]
[1726129616547,0.2653093,135.38,135.37,518.54948062]
[1726129618754,0.2653093,135.38,135.37,507.09406954]
[1726129618955,0.2653093,135.38,135.37,518.54948062]
[1726129620151,0.2653093,135.38,135.37,489.27999688]
[1726129620455,0.2653093,135.38,135.37,489.15450688]
[1726129621363,0.2653093,135.38,135.37,445.25213288]
[1726129621674,0.2653093,135.38,135.37,445.25264293]
[1726129622552,0.2653093,135.38,135.37,469.02952693]
[1726129625771,0.2653093,135.38,135.37,82.82952693]
[1726129626153,0.2653093,135.38,135.37,82.95501693]
[1726129626359,0.2653093,135.38,135.37,83.08050693]
[1726129627176,0.2653093,135.38,135.37,105.30050693]
[1726129628252,0.2653093,135.38,135.37,100.89406954]
[1726129628675,0.2653093,135.38,135.37,105.30001862]
[1726129631665,0.2653093,135.38,135.37,487.09406954]
[1726129632263,0.2653093,135.38,135.37,491.49933797]
[1726129633954,0.2653093,135.38,135.37,498.54652531]
[1726129635376,0.2653093,135.38,135.37,487.09406954]
[1726129635676,0.2653093,135.38,135.37,498.54817652]
[1726129636659,0.2653093,135.38,135.37,518.54817652]
[1726129637975,0.2653093,135.42,135.41,47.039484]
[1726129638180,0.2653093,135.42,135.41,115.59468652]
[1726129638386,0.2653093,135.46,135.45,23.2557]
[1726129638561,0.2653093,135.46,135.45,27.66112576]
[1726129638766,0.2653093,135.46,135.45,23.2557]
[1726129639080,0.2653093,135.46,135.45,27.65581051]
[1726129639465,0.2653093,135.46,135.45,23.2557]
[1726129640055,0.2653093,135.46,135.45,47.032584]
[1726129642790,0.2653093,135.46,135.45,48.63404697]
[1726129643091,0.2653093,135.46,135.45,47.158074]
[1726129646687,0.2653093,135.46,135.45,433.483564]
[1726129648290,0.2653093,135.46,135.45,433.358074]
[1726129649396,0.2653093,135.46,135.45,433.232584]
[1726129649588,0.2653093,135.46,135.45,409.4557]
[1726129652694,0.2653093,135.46,135.45,23.2557]
[1726129653901,0.2653093,135.46,135.45,47.032584]
[1726129657406,0.2653093,135.46,135.45,47.158074]
[1726129658674,0.2653093,135.46,135.45,47.283564]
[1726129664222,0.2653093,135.46,135.45,47.158074]
[1726129664402,0.2653093,135.46,135.45,61.91367954]
[1726129664715,0.2653093,135.46,135.45,62.03916954]
[1726129665491,9.3e-06,135.46,135.45,85.73504221]
[1726129665704,9.3e-06,135.46,135.45,105.73504221]
[1726129666588,9.3e-06,135.46,135.45,135.73504221]
[1726129666794,9.3e-06,135.46,135.45,105.73504221]
[1726129667009,9.3e-06,135.46,135.45,104.25916954]
[1726129668219,9.3e-06,135.46,135.45,82.03916954]
[1726129668431,9.3e-06,135.46,135.45,23.38119]
[1726129668600,9.3e-06,135.46,135.45,23.2557]
[1726129669799,9.3e-06,135.46,135.45,47.158074]
[1726129670004,9.3e-06,135.46,135.45,67.158074]
[1726129670904,9.3e-06,135.46,135.45,81.91367954]
[1726129671103,9.3e-06,135.46,135.45,82.03916954]
[1726129675309,9.3e-06,135.46,135.45,67.283564]
[1726129676815,9.3e-06,135.46,135.45,43.2557]
[1726129677012,9.3e-06,135.46,135.45,23.2557]
[1726129681422,16.4189093,135.46,135.45,23.2557]
[1726129681631,22.9393093,135.46,135.45,23.2557]
[1726129682511,37.6316241,135.46,135.45,23.2557]
[1726129682724,37.6316241,135.46,135.45,16.6112]
[1726129683105,22.9393093,135.46,135.45,23.2557]
[1726129683431,37.6316241,135.46,135.45,23.2557]
[1726129687423,37.6316241,135.46,135.45,16.6112]
[1726129687825,37.6316241,135.46,135.44,6.6449]
[1726129692547,22.9393093,135.46,135.45,6.6445]
[1726129699325,22.9393093,135.46,135.44,16.6118]
[1726129699638,22.9393093,135.46,135.44,23.2567]
[1726129701137,22.9393093,135.46,135.45,6.6445]
[1726129705639,16.4189093,135.46,135.45,6.6445]
[1726129706940,9.3e-06,135.46,135.45,6.6445]
[1726129711343,9.3e-06,135.46,135.44,23.2566]
[1726129718552,14.6923148,135.45,135.44,23.2566]
[1726129719242,9.3e-06,135.46,135.44,23.2566]
[1726129719455,14.6923241,135.46,135.44,23.2566]
[1726129722651,14.6923148,135.45,135.44,23.2566]
[1726129729164,9.3e-06,135.46,135.45,6.6445]
[1726129731353,9.3e-06,135.46,135.44,23.2566]
[1726129731667,9.3e-06,135.46,135.45,6.6445]
[1726129733360,9.3e-06,135.46,135.44,23.2566]
[1726129734043,14.6923148,135.45,135.44,23.2566]
[1726129735750,14.6923148,135.45,135.41,16.6156]
[1726129736060,14.6923148,135.43,135.41,16.6156]
[1726129736750,14.6923148,135.43,135.42,6.6459]
[1726129737064,9.3e-06,135.46,135.42,6.6459]
[1726129737251,14.6923148,135.43,135.42,6.6459]
[1726129737451,14.6923148,135.43,135.41,23.262]
[1726129738343,14.6923148,135.43,135.38,16.6196]
[1726129738536,14.6923148,135.4,135.38,16.6196]
[1726129738755,14.6923148,135.4,135.38,23.66722145]
[1726129739280,14.6923148,135.4,135.39,6.6473]
[1726129742957,6.645,135.44,135.39,6.6473]
[1726129743269,14.6923148,135.42,135.39,6.6473]
[1726129743470,14.6923148,135.4,135.39,6.6473]
[1726129743662,6.645,135.44,135.39,6.6473]
[1726129743983,14.6923148,135.4,135.39,6.6473]
[1726129751359,14.6923148,135.42,135.4,6.6469]
[1726129752856,14.6923148,135.42,135.41,6.6464]
[1726129753461,14.6923148,135.42,135.4,6.6469]
[1726129754087,14.6923148,135.42,135.38,23.267]
[1726129754263,14.6923148,135.39,135.37,6.6483]
[1726129754465,14.6923148,135.38,135.36,6.6488]
[1726129756662,22.2597,135.41,135.35,16.8882]
[1726129756870,14.6923148,135.4,135.38,6.6475]
[1726129757186,22.2597,135.41,135.38,6.6475]
[1726129760690,22.2597,135.41,135.37,23.2687]
[1726129765279,22.2597,135.41,135.35,0.2653]
[1726129765798,6.6471,135.4,135.35,6.9143]
[1726129766090,28.9062,135.41,135.36,6.6488]
[1726129771997,22.2597,135.41,135.37,6.6483]
[1726129772182,15.6939,135.41,135.36,16.6215]
[1726129772974,22.2047,135.44,135.4,6.6468]
[1726129773289,22.2047,135.44,135.42,6.6459]
[1726129773290,15.8001,135.44,135.42,6.6459]
[1726129773494,22.4437,135.47,135.42,6.6459]
[1726129774268,22.4437,135.47,135.4,16.6166]
[1726129774477,15.8001,135.47,135.43,6.6451]
[1726129775997,15.8001,135.47,135.44,6.6447]
[1726129776493,15.8001,135.47,135.43,6.6454]
[1726129777077,22.4437,135.47,135.42,23.2598]
[1726129783400,15.8001,135.47,135.43,6.6453]
[1726129786488,6.6445,135.45,135.4,6.6465]
[1726129787281,30.420984,135.46,135.41,6.6464]
[1726129789705,6.6447,135.45,135.4,6.6468]
[1726129790707,30.420884,135.46,135.41,6.646]
[1726129791612,22.4437,135.47,135.42,6.6459]
[1726129792909,22.4437,135.47,135.43,6.6454]
[1726129793801,15.8001,135.47,135.44,6.6448]
[1726129795402,15.8001,135.47,135.43,16.6131]
[1726129800310,22.4436,135.47,135.43,16.6131]
[1726129801093,15.8001,135.47,135.4,16.6168]
[1726129801287,30.421284,135.46,135.41,6.6464]
[1726129803391,22.4437,135.47,135.42,6.6456]
[1726129803803,15.8001,135.47,135.42,16.6141]
[1726129804213,15.8001,135.47,135.44,6.645]
[1726129805215,16.8174186,135.5,135.43,1.47665248]
[1726129805419,16.8174186,135.5,135.42,33.2298]
[1726129806297,16.8174186,135.5,135.46,16.6091]
[1726129806600,16.8174186,135.5,135.4,16.6166]
[1726129806911,16.0302,135.48,135.4,16.6166]
[1726129807092,43.776884,135.47,135.4,16.6166]
[1726129807992,43.776884,135.47,135.37,16.6207]
[1726129808199,6.6457,135.43,135.37,16.6207]
[1726129808622,6.645,135.44,135.38,6.6475]
[1726129809022,6.645,135.44,135.39,6.6472]
[1726129809214,6.6445,135.45,135.39,6.6472]
[1726129809900,6.6445,135.45,135.4,6.6468]
[1726129810814,6.6441,135.46,135.4,6.6468]
[1726129811121,6.6441,135.46,135.41,6.6464]
[1726129812106,43.776884,135.47,135.41,16.615]
[1726129812824,50.420784,135.47,135.42,6.6459]
[1726129814033,20.0,135.47,135.44,6.645]
[1726129814339,0.2653186,135.5,135.42,33.2288]
[1726129815536,0.2653186,135.5,135.47,6.6435]
[1726129816823,6.6439,135.47,135.41,6.646]
[1726129819041,6.6449,135.45,135.4,16.6165]
[1726129819222,6.6449,135.45,135.4,23.2632]
[1726129819619,6.6441,135.46,135.41,6.6464]
[1726129822820,28.5248,135.48,135.43,6.6454]
[1726129823229,21.8814,135.48,135.44,6.6449]
[1726129823939,0.2653186,135.5,135.47,6.6435]
[1726129824146,6.6426,135.49,135.44,23.2562]
[1726129824945,0.2653186,135.5,135.41,16.616]
[1726129825122,20.2653186,135.5,135.41,16.616]
[1726129825523,23.776884,135.49,135.41,16.616]
[1726129826524,6.6434,135.48,135.43,6.6454]
[1726129826948,6.643,135.48,135.43,6.6454]
[1726129831222,6.6436,135.47,135.41,23.2621]
[1726129831448,23.776884,135.49,135.41,23.2621]
[1726129832237,6.6441,135.46,135.41,23.2621]
[1726129834854,6.6436,135.47,135.43,6.6454]
[1726129835029,6.6436,135.47,135.42,6.6458]
[1726129836638,6.6442,135.46,135.41,16.616]
[1726129839260,6.6442,135.46,135.41,23.2622]
[1726129841357,6.6451,135.44,135.39,6.647]
[1726129842444,40.384084,135.49,135.44,6.6447]
[1726129842445,6.6429,135.49,135.44,6.6447]
[1726129842632,35.3019186,135.5,135.43,6.6454]
[1726129842633,26.6432,135.48,135.43,6.6454]
[1726129843150,20.0,135.48,135.44,6.6449]
[1726129844241,30.420484,135.47,135.42,23.2598]
[1726129845060,23.776884,135.47,135.39,16.6183]
[1726129845362,23.776884,135.45,135.4,6.6465]
[1726129846254,6.645,135.44,135.4,6.6465]
[1726129848643,6.645,135.44,135.39,16.6183]
[1726129848644,6.6455,135.43,135.39,16.6183]
[1726129850861,6.6465,135.41,135.36,409.4702]
[1726129851061,6.6475,135.39,135.36,386.2]
[1726129852353,6.6469,135.41,135.36,386.2]
[1726129852551,40.311884,135.45,135.37,6.6483]
[1726129852751,23.776884,135.43,135.37,6.6483]
[1726129852961,26.6464,135.42,135.37,6.6483]
[1726129853464,26.6464,135.42,135.36,392.8488]
[1726129853945,6.6465,135.41,135.37,6.6483]
[1726129854150,6.6465,135.41,135.36,392.8488]
[1726129854470,26.6461,135.42,135.37,6.6481]
[1726129854840,30.423684,135.41,135.36,386.2]
[1726129855150,6.647,135.4,135.36,386.2]
[1726129856461,26.6461,135.42,135.36,6.6484]
[1726129856668,6.6469,135.41,135.36,6.6484]
[1726129856841,6.6469,135.41,135.35,409.7374]
[1726129857463,6.6471,135.4,135.35,409.7374]
[1726129857765,6.6477,135.39,135.35,16.8881]
[1726129858145,6.6477,135.39,135.35,23.5375]
[1726129858351,6.6477,135.39,135.35,16.8881]
[1726129860768,6.647,135.4,135.35,23.5374]
[1726129861571,6.647,135.4,135.35,16.8881]
[1726129862469,6.6475,135.39,135.35,16.8881]
[1726129864658,20.0,135.42,135.35,0.2653]
[1726129864659,6.6485,135.37,135.35,0.2653]
[1726129864864,26.5415,135.42,135.35,0.2653]
[1726129865059,6.6479,135.38,135.35,0.2653]
[1726129867349,6.6486,135.37,135.35,0.2653]
[1726129868969,6.6489,135.36,135.35,0.2653]
[1726129881779,30.425784,135.36,135.35,0.2653]
[1726129882776,6.6489,135.36,135.35,0.2653]
[1726129883870,6.6484,135.37,135.35,0.2653]
[1726129885156,16.4817,135.4,135.35,0.2653]
[1726129886262,23.1287,135.4,135.35,6.9146]
[1726129886467,6.647,135.4,135.35,6.9146]
[1726129890790,6.647,135.4,135.36,6.6489]
[1726129892081,6.6465,135.41,135.36,6.6489]
[1726129892285,6.646,135.42,135.37,6.6483]
[1726129893984,6.6465,135.41,135.37,6.6483]
[1726129894195,6.6465,135.41,135.36,23.2703]
[1726129894978,6.647,135.4,135.36,23.2703]
[1726129895379,6.647,135.4,135.36,16.6215]
[1726129897406,6.6475,135.39,135.35,0.2653]
[1726129898301,6.648,135.38,135.35,0.2653]
[1726129898998,6.6484,135.37,135.35,0.2653]
[1726129901397,38.498,135.48,135.38,16.6187]
[1726129901577,6.6455,135.43,135.38,16.6187]
[1726129902393,6.6455,135.43,135.38,23.2665]
[1726129902591,0.2653186,135.5,135.41,16.6155]
[1726129902778,6.643,135.49,135.41,16.6155]
[1726129903084,6.643,135.49,135.43,6.6454]
[1726129903477,0.2653186,135.5,135.45,6.6444]
[1726129903894,0.2653186,135.5,135.41,16.5843]
[1726129904201,0.2653186,135.5,135.4,16.6162]
[1726129905086,20.2653186,135.5,135.4,16.6162]
[1726129905286,20.2653186,135.5,135.42,16.6138]
[1726129905604,26.9074186,135.5,135.44,6.6445]
[1726129906579,24.0422026,135.5,135.44,16.6113]
[1726129906803,0.2653186,135.5,135.46,6.6435]
[1726129906976,0.2653186,135.5,135.44,23.2558]
[1726129907179,0.2653186,135.5,135.46,6.6438]
[1726129908100,24.0422026,135.5,135.46,6.6438]
[1726129908310,24.0422026,135.5,135.45,6.6445]
[1726129908311,0.2653186,135.5,135.45,6.6445]
[1726129908908,6.9073186,135.5,135.45,6.6445]
[1726129909507,23.776884,135.49,135.45,6.6445]
[1726129910008,30.419384,135.49,135.44,23.2562]
[1726129911505,23.776884,135.47,135.44,16.6113]
[1726129912496,6.644,135.46,135.41,16.6157]
[1726129912698,23.776884,135.45,135.41,16.6157]
[1726129913004,30.421484,135.45,135.41,16.6157]
[1726129913387,6.6451,135.44,135.39,6.6473]
[1726129914189,30.421384,135.45,135.39,6.6473]
[1726129915122,6.6451,135.44,135.39,6.6473]
[1726129916503,30.421484,135.45,135.4,6.6469]
[1726129917607,23.776884,135.45,135.41,6.6463]
[1726129917791,30.421384,135.45,135.4,6.6469]
[1726129918484,6.6452,135.44,135.38,23.2671]
[1726129919216,6.6457,135.43,135.38,23.2671]
[1726129919411,30.422984,135.42,135.38,16.6196]
[1726129919717,15.7302,135.4,135.36,6.6488]
[1726129921387,15.7302,135.4,135.35,16.8887]
[1726129921602,15.7302,135.4,135.37,6.6484]
[1726129922009,23.776884,135.39,135.35,0.2653]
[1726129922404,6.648,135.38,135.35,0.2653]